fUST/lending_fUST_20250309
["ID","MTS","AMOUNT","RATE_DAILY","PERIOD"]
[355724466,1741505449629,-151.0,0.0005863,120]
[355724467,1741505449638,-192.970901,0.0005863,120]
[355724468,1741505449649,-192.970901,0.0005863,120]
[355724469,1741505449658,-852.36,0.0005863,120]
[355724470,1741505449667,-626.33,0.0005863,120]
[355724471,1741505449677,-626.33,0.0005863,120]
[355724472,1741505449686,-626.33,0.0005863,120]
[355724473,1741505449695,-626.33,0.0005863,120]
[355724474,1741505449705,-626.33,0.0005863,120]
[355724475,1741505449714,-626.33,0.0005863,120]
[355724476,1741505449725,-626.33,0.0005863,120]
[355724477,1741505449734,-626.33,0.0005863,120]
[355724478,1741505449743,-626.33,0.0005863,120]
[355724479,1741505449753,-626.33,0.0005863,120]
[355724480,1741505449763,-626.33,0.0005863,120]
[355724481,1741505449773,-626.33,0.0005863,120]
[355724482,1741505449781,-626.33,0.0005863,120]
[355724483,1741505449792,-626.33,0.0005863,120]
[355724484,1741505449801,-626.33,0.0005863,120]
[355724485,1741505449811,-459.15478,0.0005863,120]
[355724486,1741505449820,-459.15478,0.0005863,120]
[355724487,1741505449830,-861.93,0.0005863,120]
[355724488,1741505449840,-815.6068,0.0005863,120]
[355724489,1741505449850,-815.6068,0.0005863,120]
[355724490,1741505449860,-151.0,0.0005863,120]
[355724491,1741505449870,-151.0,0.0005863,120]
[355724492,1741505449879,-500.0,0.0005863,120]
[355724493,1741505449889,-151.0,0.0005863,120]
[355724494,1741505449900,-602.74,0.0005863,120]
[355724495,1741505449910,-1094.2,0.0005863,120]
[355724496,1741505449919,-354.926644,0.0005863,120]
[355724497,1741505449928,-354.926644,0.0005863,120]
[355724498,1741505449938,-500.0,0.0005863,120]
[355724499,1741505449948,-1329.52,0.0005863,120]
[355724500,1741505449958,-151.0,0.0005863,120]
[355724501,1741505449968,-151.0,0.0005863,120]
[355724502,1741505449978,-500.0,0.0005863,120]
[355724503,1741505449988,-810.35,0.0005863,120]
[355724504,1741505449998,-1500.0,0.0005863,120]
[355724505,1741505450009,-4509.37,0.0005863,120]
[355724506,1741505450019,-500.0,0.0005863,120]
[355724507,1741505450029,-10711.78,0.0005863,7]
[355724508,1741505450039,-704.67,0.0005863,120]
[355724509,1741505450048,-1694.82,0.0005863,120]
[355724510,1741505450058,-2036.0,0.000587,70]
[355724511,1741505450068,-154.34,0.000587,60]
[355724512,1741505450078,-154.34,0.000587,60]
[355724513,1741505450088,-154.34,0.000587,60]
[355724514,1741505450098,-154.34,0.000587,60]
[355724515,1741505450108,-154.34,0.000587,60]
[355724516,1741505450119,-154.34,0.000587,60]
[355724517,1741505450129,-154.34,0.000587,60]
[355724518,1741505450139,-154.34,0.000587,60]
[355724519,1741505450149,-154.34,0.000587,60]
[355724520,1741505450158,-154.34,0.000587,60]
[355724521,1741505450168,-200.0,0.00058724,120]
[355724522,1741505450178,-200.0,0.00058733,120]
[355724523,1741505450188,-68459.29157229,0.0005878,60]
[355724524,1741505450198,-22719.78100053,0.000588,120]
[355724525,1741505450208,-151.0,0.000588,120]
[355724526,1741505450217,-151.0,0.000588,120]
[355724527,1741505450226,-151.0,0.000588,120]
[355724528,1741505450236,-151.0,0.000588,120]
[355724529,1741505450246,-4732.56,0.00058904,120]
[355724530,1741505450255,-852.36,0.00058904,120]
[355724531,1741505450265,-626.33,0.00058904,120]
[355724532,1741505450275,-861.93,0.00058904,120]
[355724533,1741505450284,-500.0,0.00058904,2]
[355724534,1741505450294,-186.14533326,0.00058904,120]
[355724535,1741505450304,-602.74,0.00058904,120]
[355724536,1741505450314,-1094.2,0.00058904,120]
[355724537,1741505450324,-500.0,0.00058904,120]
[355724538,1741505450334,-1329.52,0.00058904,120]
[355724539,1741505450343,-543.37739042,0.00058904,120]
[355724540,1741505450354,-810.35,0.00058904,120]
[355724541,1741505450363,-1500.0,0.00058904,120]
[355724542,1741505450373,-4509.37,0.00058904,120]
[355724543,1741505450383,-500.0,0.00058904,120]
[355724544,1741505450393,-10711.78,0.00058904,7]
[355724545,1741505450403,-150.57,0.00058904,120]
[355724546,1741505450413,-150.57,0.00058904,120]
[355724547,1741505450424,-150.57,0.00058904,2]
[355724548,1741505450434,-704.67,0.00058904,120]
[355724549,1741505450444,-1694.82,0.00058904,120]
[355724550,1741505450455,-150.57,0.00058904,120]
[355724551,1741505450465,-500.0,0.00058931,2]
[355724552,1741505450475,-150.57,0.00058931,120]
[355724553,1741505450484,-207.36139057,0.00058931,120]
[355724554,1741505450494,-150.57,0.00058931,120]
[355724555,1741505450505,-160.0,0.0005895,6]
[355724556,1741505450515,-209.28658938,0.0005895,5]
[355724557,1741505450525,-160.0,0.0005895,5]
[355724558,1741505450534,-500.0,0.00058959,2]
[355724559,1741505450543,-251.4276889,0.00058959,120]
[355724560,1741505450553,-150.57,0.00058959,120]
[355724561,1741505450563,-500.0,0.00058986,2]
[355724562,1741505450573,-151.68134365,0.00058986,120]
[355724563,1741505450582,-500.0,0.00059,120]
[355724564,1741505450592,-44498.25554247,0.00059,30]
[355724565,1741505450602,-44498.25554247,0.00059,30]
[355724566,1741505450611,-50447.25801337,0.00059,30]
[355724567,1741505450622,-50447.25801337,0.00059,30]
[355724568,1741505450632,-1000.0,0.00059,120]
[355724569,1741505450641,-47472.75677792,0.00059,30]
[355724570,1741505450651,-47472.75677792,0.00059,30]
[355724571,1741505450660,-151.0,0.00059,120]
[355724572,1741505450670,-151.0,0.00059,120]
[355724573,1741505450679,-151.0,0.00059,120]
[355724574,1741505450689,-151.0,0.00059,120]
[355724575,1741505450698,-151.0,0.00059,120]
[355724576,1741505450708,-151.0,0.00059,120]
[355724577,1741505450718,-151.0,0.00059,120]
[355724578,1741505450727,-151.0,0.00059,120]
[355724579,1741505450737,-151.0,0.00059,120]
[355724580,1741505450746,-151.0,0.00059,120]
[355724581,1741505450756,-151.0,0.00059,120]
[355724582,1741505450766,-151.0,0.00059,120]
[355724583,1741505450775,-258.907185,0.00059,120]
[355724584,1741505450785,-258.907185,0.00059,120]
[355724585,1741505450794,-302.353765,0.00059,120]
[355724586,1741505450804,-302.353765,0.00059,120]
[355724587,1741505450813,-302.353765,0.00059,120]
[355724588,1741505450823,-302.353765,0.00059,120]
[355724589,1741505450832,-155.586339,0.00059,120]
[355724590,1741505450841,-151.0,0.00059,120]
[355724591,1741505450851,-151.0,0.00059,120]
[355724592,1741505450860,-151.0,0.00059,120]
[355724593,1741505450870,-342.542148,0.00059,30]
[355724594,1741505450879,-342.542148,0.00059,30]
[355724595,1741505450888,-342.542148,0.00059,30]
[355724596,1741505450898,-342.542148,0.00059,30]
[355724597,1741505450907,-342.542148,0.00059,30]
[355724598,1741505450916,-342.542148,0.00059,30]
[355724599,1741505450925,-151.0,0.00059,120]
[355724600,1741505450935,-151.0,0.00059,120]
[355724601,1741505450944,-151.0,0.00059,120]
[355724602,1741505450953,-151.0,0.00059,120]
[355724603,1741505450963,-151.0,0.00059,120]
[355724604,1741505450972,-151.0,0.00059,120]
[355724605,1741505450982,-151.0,0.00059,120]
[355724606,1741505451049,-151.0,0.00059,120]
[355724607,1741505451065,-151.0,0.00059,120]
[355724608,1741505451075,-151.0,0.00059,120]
[355724609,1741505451084,-151.0,0.00059,120]
[355724610,1741505451093,-151.0,0.00059,120]
[355724611,1741505451103,-151.0,0.00059,120]
[355724612,1741505451112,-151.0,0.00059,120]
[355724613,1741505451122,-151.0,0.00059,120]
[355724614,1741505451131,-151.0,0.00059,120]
[355724615,1741505451141,-151.0,0.00059,120]
[355724616,1741505451152,-233.451027,0.00059,120]
[355724617,1741505451162,-233.451027,0.00059,120]
[355724618,1741505451171,-233.451027,0.00059,120]
[355724619,1741505451181,-233.451027,0.00059,120]
[355724620,1741505451190,-233.451027,0.00059,120]
[355724621,1741505451200,-233.451027,0.00059,120]
[355724622,1741505451209,-23736.37838896,0.00059,30]
[355724623,1741505451218,-23736.37838896,0.00059,30]
[355724624,1741505451227,-151.0,0.00059,120]
[355724625,1741505451237,-151.0,0.00059,120]
[355724626,1741505451246,-151.0,0.00059,120]
[355724627,1741505451255,-516.444178,0.00059,30]
[355724628,1741505451265,-151.0,0.00059,120]
[355724629,1741505451275,-168.205626,0.00059,120]
[355724630,1741505451284,-151.0,0.00059,120]
[355724631,1741505451293,-151.0,0.00059,120]
[355724632,1741505451302,-151.0,0.00059,120]
[355724633,1741505451311,-152.572419,0.00059,120]
[355724634,1741505451321,-1130.422338,0.00059,120]
[355724635,1741505451331,-1130.422338,0.00059,120]
[355724636,1741505451340,-1130.422338,0.00059,120]
[355724637,1741505451350,-1130.422338,0.00059,120]
[355724638,1741505451359,-1130.422338,0.00059,120]
[355724639,1741505451369,-1130.422338,0.00059,120]
[355724640,1741505451380,-1130.422338,0.00059,120]
[355724641,1741505451389,-1130.422338,0.00059,120]
[355724642,1741505451399,-1130.422338,0.00059,120]
[355724643,1741505451409,-1130.422338,0.00059,120]
[355724644,1741505451419,-151.0,0.00059,120]
[355724645,1741505451431,-151.0,0.00059,120]
[355724646,1741505451440,-151.0,0.00059,120]
[355724647,1741505451449,-151.0,0.00059,120]
[355724648,1741505451459,-151.0,0.00059,120]
[355724649,1741505451468,-154.02273,0.00059,120]
[355724650,1741505451477,-151.0,0.00059,120]
[355724651,1741505451486,-151.0,0.00059,120]
[355724652,1741505451495,-151.0,0.00059,120]
[355724653,1741505451505,-151.0,0.00059,120]
[355724654,1741505451515,-151.0,0.00059,120]
[355724655,1741505451524,-151.0,0.00059,120]
[355724656,1741505451533,-151.0,0.00059,120]
[355724657,1741505451543,-151.0,0.00059,120]
[355724658,1741505451552,-151.0,0.00059,120]
[355724659,1741505451563,-151.0,0.00059,120]
[355724660,1741505451572,-151.0,0.00059,120]
[355724661,1741505451581,-166.480911,0.00059,120]
[355724662,1741505451591,-192.970901,0.00059,120]
[355724663,1741505451605,-192.970901,0.00059,120]
[355724664,1741505451615,-192.970901,0.00059,120]
[355724665,1741505451625,-192.970901,0.00059,120]
[355724666,1741505451634,-192.970901,0.00059,120]
[355724667,1741505451645,-192.970901,0.00059,120]
[355724668,1741505451654,-192.970901,0.00059,120]
[355724669,1741505451664,-192.970901,0.00059,120]
[355724670,1741505451674,-301.574118,0.00059,90]
[355724671,1741505451684,-459.15478,0.00059,120]
[355724672,1741505451694,-459.15478,0.00059,120]
[355724673,1741505451704,-459.15478,0.00059,120]
[355724674,1741505451714,-459.15478,0.00059,120]
[355724675,1741505451724,-459.15478,0.00059,120]
[355724676,1741505451734,-459.15478,0.00059,120]
[355724677,1741505451745,-459.15478,0.00059,120]
[355724678,1741505451755,-459.15478,0.00059,120]
[355724679,1741505451765,-151.0,0.00059,120]
[355724680,1741505451775,-151.0,0.00059,120]
[355724681,1741505451784,-151.0,0.00059,120]
[355724682,1741505451794,-151.0,0.00059,120]
[355724683,1741505451804,-254.410923,0.00059,120]
[355724684,1741505451814,-450.47869,0.00059,120]
[355724685,1741505451824,-450.47869,0.00059,120]
[355724686,1741505451834,-450.47869,0.00059,120]
[355724687,1741505451843,-450.47869,0.00059,120]
[355724688,1741505451852,-450.47869,0.00059,120]
[355724689,1741505451861,-450.47869,0.00059,120]
[355724690,1741505451870,-450.47869,0.00059,120]
[355724691,1741505451880,-450.47869,0.00059,120]
[355724692,1741505451890,-450.47869,0.00059,120]
[355724693,1741505451900,-450.47869,0.00059,120]
[355724694,1741505451911,-151.0,0.00059,120]
[355724695,1741505451921,-151.0,0.00059,120]
[355724696,1741505451931,-261.625288,0.00059,120]
[355724697,1741505451941,-815.6068,0.00059,120]
[355724698,1741505451951,-815.6068,0.00059,120]
[355724699,1741505451961,-815.6068,0.00059,120]
[355724700,1741505451971,-815.6068,0.00059,120]
[355724701,1741505451980,-815.6068,0.00059,120]
[355724702,1741505451990,-815.6068,0.00059,120]
[355724703,1741505451999,-815.6068,0.00059,120]
[355724704,1741505452010,-815.6068,0.00059,120]
[355724705,1741505452019,-151.0,0.00059,120]
[355724706,1741505452029,-151.0,0.00059,120]
[355724707,1741505452039,-151.0,0.00059,120]
[355724708,1741505452049,-151.0,0.00059,120]
[355724709,1741505452058,-432.979021,0.00059,120]
[355724710,1741505452068,-432.979021,0.00059,120]
[355724711,1741505452078,-432.979021,0.00059,120]
[355724712,1741505452088,-432.979021,0.00059,120]
[355724713,1741505452098,-151.0,0.00059,120]
[355724714,1741505452107,-151.0,0.00059,120]
[355724715,1741505452117,-151.0,0.00059,120]
[355724716,1741505452128,-153.550886,0.00059,120]
[355724717,1741505452137,-151.0,0.00059,120]
[355724718,1741505452147,-151.0,0.00059,120]
[355724719,1741505452156,-151.0,0.00059,120]
[355724720,1741505452166,-151.0,0.00059,120]
[355724721,1741505452176,-151.0,0.00059,120]
[355724722,1741505452185,-151.0,0.00059,120]
[355724723,1741505452195,-153.847753,0.00059,120]
[355724724,1741505452205,-354.926644,0.00059,120]
[355724725,1741505452214,-354.926644,0.00059,120]
[355724726,1741505452224,-354.926644,0.00059,120]
[355724727,1741505452234,-354.926644,0.00059,120]
[355724728,1741505452243,-354.926644,0.00059,120]
[355724729,1741505452252,-354.926644,0.00059,120]
[355724730,1741505452262,-354.926644,0.00059,120]
[355724731,1741505452271,-354.926644,0.00059,120]
[355724732,1741505452280,-171.709801,0.00059,120]
[355724733,1741505452290,-171.709801,0.00059,120]
[355724734,1741505452299,-171.709801,0.00059,120]
[355724735,1741505452309,-171.709801,0.00059,120]
[355724736,1741505452318,-171.709801,0.00059,120]
[355724737,1741505452327,-171.709801,0.00059,120]
[355724738,1741505452336,-171.709801,0.00059,120]
[355724739,1741505452346,-171.709801,0.00059,120]
[355724740,1741505452355,-151.0,0.00059,120]
[355724741,1741505452364,-151.0,0.00059,120]
[355724742,1741505452373,-151.0,0.00059,120]
[355724743,1741505452383,-151.0,0.00059,120]
[355724744,1741505452392,-151.0,0.00059,120]
[355724745,1741505452402,-151.0,0.00059,120]
[355724746,1741505452412,-262.128452,0.00059,120]
[355724747,1741505452424,-151.0,0.00059,120]
[355724748,1741505452433,-151.0,0.00059,120]
[355724749,1741505452443,-151.0,0.00059,120]
[355724750,1741505452452,-151.0,0.00059,120]
[355724751,1741505452462,-151.0,0.00059,120]
[355724752,1741505452472,-1599.213816,0.00059,120]
[355724753,1741505452482,-1599.213816,0.00059,120]
[355724754,1741505452491,-1599.213816,0.00059,120]
[355724755,1741505452566,-1599.213816,0.00059,120]
[355724756,1741505452577,-1599.213816,0.00059,120]
[355724757,1741505452586,-1599.213816,0.00059,120]
[355724758,1741505452596,-1599.213816,0.00059,120]
[355724759,1741505452606,-759.213674,0.00059,120]
[355724760,1741505452616,-759.213674,0.00059,120]
[355724761,1741505452626,-1599.213816,0.00059,120]
[355724762,1741505452636,-759.213674,0.00059,120]
[355724763,1741505452645,-759.213674,0.00059,120]
[355724764,1741505452655,-228.271334,0.00059,120]
[355724765,1741505452664,-228.271334,0.00059,120]
[355724766,1741505452674,-228.271334,0.00059,120]
[355724767,1741505452684,-228.271334,0.00059,120]
[355724768,1741505452694,-759.213674,0.00059,120]
[355724769,1741505452705,-759.213674,0.00059,120]
[355724770,1741505452715,-228.271334,0.00059,120]
[355724771,1741505452725,-759.213674,0.00059,120]
[355724772,1741505452735,-228.271334,0.00059,120]
[355724773,1741505452745,-759.213674,0.00059,120]
[355724774,1741505452755,-228.271334,0.00059,120]
[355724775,1741505452764,-228.271334,0.00059,120]
[355724776,1741505452774,-118254.85024896,0.00059,30]
[355724777,1741505452839,-5227.8891151,0.00059,30]
[355724778,1741505452915,-400.0,0.00053816,20]
[355724779,1741505453289,-600.0,0.00053816,20]
[355724780,1741505453299,-1000.0,0.00053953,20]
[355724781,1741505453308,-876.74,0.00054795,10]
[355724782,1741505453318,-500.0,0.0005589,120]
[355724783,1741505453327,-500.0,0.00056164,120]
[355724784,1741505453338,-500.0,0.00056438,2]
[355724785,1741505453347,-485.35636984,0.00056438,120]
[355724786,1741505453357,-169.15641974,0.00056712,2]
[355724787,1741505453366,-1719.63872122,0.00059,30]
[355724788,1741505453484,-1191.90761232,0.00059,30]
[355724789,1741505453495,-191680.26520302,0.00059,30]
[355724790,1741505536312,289.52987016,0.00033,2]
[355724791,1741505545920,531.76866585,0.00033,2]
[355724793,1741505945802,-204.017126,0.00031,10]
[355724794,1741506004921,-262.8202165,0.00031,10]
[355724795,1741506021771,-150.29727901,0.00031,10]
[355724796,1741506021801,-57.18403127,0.000359,7]
[355724797,1741506028840,-302.85934486,0.000309,2]
[355724798,1741506065117,-150.0,0.00037198,103]
[355724799,1741506083267,-150.90626767,0.00033,2]
[355724800,1741506086340,-3.27417442,0.00037198,103]
[355724801,1741506086366,-157.7565,0.00039895,14]
[355724802,1741506086391,-167.006,0.00039895,14]
[355724803,1741506086415,-160.0,0.00041,14]
[355724805,1741506189120,-182.67124542,0.000359,7]
[355724806,1741506339112,-349.09373233,0.00033,2]
[355724807,1741506339135,-500.0,0.00033,2]
[355724808,1741506339157,-557.25246958,0.00033,2]
[355724809,1741506339179,-164.142311,0.0003589,2]
[355724810,1741506339200,-177.5996812,0.00037297,2]
[355724811,1741506339221,-400.0,0.00037521,2]
[355724812,1741506339243,-302.2977753,0.00038074,2]
[355724813,1741506339265,-224.4182356,0.00038074,2]
[355724814,1741506339287,-442.64967546,0.00038122,2]
[355724816,1741506386259,-159.58505571,0.00036022,2]
[355724817,1741506396153,-206.90415627,0.00036022,2]
[355724818,1741506430087,-671.20673489,0.00036022,2]
[355724819,1741506430108,-166.66666666,0.00038022,2]
[355724820,1741506430128,-57.35032454,0.00038122,2]
[355724821,1741506430151,-509.120052,0.00038839,2]
[355724822,1741506430172,-185.89,0.00038839,2]
[355724823,1741506430195,-78.88963554,0.000389,8]
[355724824,1741506431090,-671.67303721,0.000389,8]
[355724825,1741506431114,-51.67421439,0.00039086,5]
[355724826,1741506435122,-348.32578561,0.00039086,5]
[355724827,1741506435145,-500.0,0.00039087,15]
[355724828,1741506435168,-73.44294385,0.00039087,15]
[355724829,1741506437034,-188.87013029,0.00033,2]
[355724830,1741506449919,-10.46058821,0.00033,2]
[355724831,1741506449942,-170.98329994,0.00033,2]
[355724833,1741506548085,-710.27852076,0.00033,2]
[355724834,1741506554109,-725.54391704,0.000379,8]
[355724835,1741506554133,-160.62344217,0.00038987,114]
[355724836,1741506554157,-426.55705615,0.00039087,15]
[355724837,1741506554182,-333.72723587,0.00039087,15]
[355724838,1741506554206,-500.0,0.00039087,2]
[355724839,1741506554229,-573.30943431,0.00039087,15]
[355724840,1741506554252,-234.949217,0.00039087,15]
[355724841,1741506554279,-500.0,0.00039087,2]
[355724842,1741506554304,-239.07928462,0.00039087,2]
[355724843,1741506554332,-500.0,0.00039087,2]
[355724844,1741506554507,-500.0,0.00039087,2]
[355724845,1741506554544,-500.0,0.00039087,2]
[355724846,1741506554571,-500.0,0.00039087,2]
[355724847,1741506554597,-227.93065015,0.00039087,2]
[355724848,1741506557090,-272.06934985,0.00039087,2]
[355724849,1741506557118,-500.0,0.00039087,2]
[355724850,1741506557146,-500.0,0.00039087,2]
[355724851,1741506557172,-500.0,0.00039087,2]
[355724852,1741506557199,-500.0,0.00039087,2]
[355724853,1741506557227,-500.0,0.00039087,2]
[355724854,1741506557255,-439.65368672,0.00039087,2]
[355724855,1741506557282,-500.0,0.00039087,2]
[355724856,1741506557307,-500.0,0.00039087,2]
[355724857,1741506557333,-361.02729958,0.00039087,2]
[355724858,1741506558094,-138.97270042,0.00039087,2]
[355724859,1741506558122,-500.0,0.00039087,2]
[355724860,1741506558151,-500.0,0.00039087,2]
[355724861,1741506558174,-534.49953884,0.00039088,2]
[355724862,1741506565093,-2637.03932147,0.00039088,2]
[355724863,1741506574151,-2347.8152573,0.00039088,2]
[355724910,1741506632493,-1721.62827515,0.000388,2]
[355724919,1741506632567,-356.29416965,0.000388,2]
[355724921,1741506632576,-11620.80656339,0.00039088,2]
[355724923,1741506632586,-203.4685256,0.0003915,2]
[355724925,1741506632595,-161.0,0.00041,14]
[355724927,1741506632604,-500.0,0.00041021,2]
[355724929,1741506632614,-437.73929853,0.00041021,2]
[355724931,1741506632624,-1037.69594687,0.00041022,2]
[355724933,1741506632633,-511.43705835,0.000418,5]
[355724935,1741506632643,-557.7569598,0.00044443,120]
[355724937,1741506632652,-597.35594308,0.00044443,31]
[355724939,1741506632662,-14049.0312827,0.00044444,120]
[355725450,1741506638903,-5125.0,0.00044444,120]
[355725452,1741506639066,-1960.89919177,0.00044444,120]
[355725670,1741506643693,-24458.05552426,0.00044444,120]
[355725671,1741506643703,-160.21911038,0.00044473,10]
[355725672,1741506643712,-500.0,0.00044473,10]
[355725673,1741506643722,-330.39095265,0.00044473,10]
[355725674,1741506643731,-426.63177568,0.00044473,10]
[355725675,1741506643742,-500.0,0.00044473,10]
[355725676,1741506643751,-546.80117188,0.00044473,10]
[355725677,1741506643760,-500.0,0.00044473,10]
[355725678,1741506643770,-356.47930468,0.00044473,10]
[355725679,1741506643779,-500.0,0.00044473,2]
[355725680,1741506643788,-500.0,0.00044473,10]
[355725681,1741506643797,-500.0,0.00044473,10]
[355725682,1741506643807,-522.14335578,0.00044473,10]
[355725683,1741506643816,-500.0,0.00044473,10]
[355725684,1741506643825,-565.05790842,0.00044473,10]
[355725685,1741506643834,-500.0,0.000445,7]
[355725686,1741506643843,-500.0,0.000445,7]
[355725687,1741506643852,-418.9564924,0.000445,2]
[355725688,1741506643862,-501.35403126,0.000445,10]
[355725689,1741506643871,-429.58774949,0.000445,10]
[355725690,1741506643880,-150.86817263,0.000445,5]
[355725691,1741506643889,-1500.0,0.00045,30]
[355725692,1741506643899,-1500.0,0.00045,30]
[355725693,1741506643908,-1500.0,0.00045,30]
[355725694,1741506643917,-500.0,0.00045,30]
[355725695,1741506643926,-233.8321,0.00046,120]
[355725696,1741506643936,-1037.69594687,0.00046022,2]
[355725697,1741506643946,-500.0,0.00046575,10]
[355725698,1741506643955,-1500.0,0.00047,2]
[355725699,1741506643965,-1500.0,0.00047,2]
[355725700,1741506643974,-1500.0,0.00047,2]
[355725701,1741506643983,-1000.0,0.00047,120]
[355725702,1741506643993,-390641.60361949,0.000478,14]
[355725778,1741506662555,150.0,0.00022082,7]
[355725779,1741506663327,150.0,0.00022082,7]
[355725780,1741506663706,198.0,0.00022082,7]
[355725781,1741506664091,201.0,0.00022082,7]
[355725782,1741506664486,320.0,0.00022082,7]
[355725783,1741506736148,500.0,0.00033,2]
[355725784,1741506736524,500.0,0.00033,2]
[355725785,1741506736877,500.0,0.00033,2]
[355725786,1741506737271,121.11752201,0.00031,10]
[355725787,1741506737295,378.88247799,0.00031,10]
[355725788,1741506737700,561.1050862,0.00031,10]
[355725789,1741506740399,505.65970739,0.00033,2]
[355725790,1741506741015,278.66164232,0.00033,2]
[355725791,1741506741039,221.33835768,0.00033,2]
[355725792,1741506741401,916.07596613,0.00031,10]
[355725793,1741506748491,501.89757263,0.00033,2]
[355725794,1741506752461,500.0,0.00033,2]
[355725795,1741506752823,500.0,0.00033,2]
[355725796,1741506753204,235.37721865,0.00033,2]
[355725797,1741506753459,-181.44388815,0.00033,2]
[355725798,1741506801298,-280.27847462,0.00031,10]
[355725799,1741506843635,150.0,0.00022082,7]
[355725800,1741506925006,-150.0,0.000309,2]
[355725801,1741506996927,-150.0,0.000309,2]
[355725802,1741507046784,-197.14065514,0.00031,10]
[355725803,1741507084072,-70.31401844,0.000309,2]
[355725804,1741507084097,-133.70310756,0.00030999,2]
[355725806,1741507144743,-152.85934486,0.00030999,2]
[355725808,1741507192533,-22.58087024,0.00031,10]
[355725809,1741507192558,-500.0,0.00031,10]
[355725810,1741507192582,-215.20738128,0.00031,10]
[355725811,1741507198632,-364.14154195,0.00031,10]
[355725821,1741507366856,1009.5,0.0003,2]
[355725833,1741507551121,-150.0,0.000308,2]
[355725834,1741507551143,-166.66666668,0.000309,2]
[355725835,1741507551168,-248.95158285,0.00031,10]
[355725836,1741507552122,-150.0,0.00031,10]
[355725838,1741507590929,-200.0,0.000309,2]
[355725840,1741507633114,-113.68321764,0.000309,2]
[355725841,1741507633136,-397.52651891,0.00031,10]
[355725842,1741507639110,-85.77124005,0.00031,10]
[355725843,1741507639252,-140.47871007,0.00032675,2]
[355725844,1741507642100,-216.99221775,0.00032675,2]
[355725845,1741507642123,-83.1788932,0.00033,2]
[355725846,1741507642146,-193.05139613,0.00033,2]
[355725847,1741507642169,-500.0,0.00033,2]
[355725848,1741507642190,-164.924008,0.0003589,2]
[355725849,1741507642213,-373.77213943,0.000359,7]
[355725850,1741507646085,-364.01611209,0.000359,7]
[355725851,1741507646109,-313.68321764,0.000359,2]
[355725852,1741507646132,-160.62344216,0.000362,98]
[355725853,1741507646158,-400.0,0.00037587,2]
[355725854,1741507646184,-3283.01040645,0.000377,2]
[355725855,1741507646208,-500.0,0.00037741,15]
[355725856,1741507646233,-497.69333894,0.00037741,15]
[355725857,1741507653317,-328.18502749,0.00033,2]
[355725858,1741507653345,-2.30666106,0.00037741,15]
[355725859,1741507653369,-500.0,0.00037741,2]
[355725860,1741507653398,-500.0,0.00037741,2]